bitfinex/quotes_BTCUSD_20241028
["timestamp","ask_amount","ask_price","bid_price","bid_amount"]
[1730135325929,0.00165,68708.0,68707.0,0.89121415]
[1730135326145,0.00165,68708.0,68707.0,0.91285458]
[1730135326352,0.00165,68708.0,68707.0,0.89121153]
[1730135327393,0.00165,68734.0,68717.0,0.0168014]
[1730135327614,0.00165,68734.0,68717.0,0.56007077]
[1730135328032,0.145491,68733.0,68717.0,0.56007077]
[1730135328310,0.00165,68734.0,68717.0,0.56007077]
[1730135328536,0.0112435,68732.0,68731.0,0.1502954]
[1730135328743,0.0112435,68732.0,68731.0,0.15530521]
[1730135329371,0.0112435,68732.0,68731.0,0.30079921]
[1730135330260,0.0112435,68732.0,68731.0,0.31479921]
[1730135330470,0.1567355,68732.0,68731.0,0.16930521]
[1730135330692,0.3723341,68732.0,68731.0,0.028]
[1730135330915,0.40736034,68732.0,68731.0,0.028]
[1730135331552,0.51236034,68732.0,68731.0,0.014]
[1730135331759,0.51236034,68732.0,68720.0,0.21764207]
[1730135331760,0.145515,68721.0,68720.0,0.21764207]
[1730135331971,0.290993,68730.0,68721.0,0.145515]
[1730135332222,0.01347373,68729.0,68721.0,0.15050381]
[1730135332431,0.1,68731.0,68721.0,0.15050381]
[1730135332647,0.01347661,68730.0,68721.0,0.15050381]
[1730135332856,0.145512,68723.0,68721.0,0.15050381]
[1730135333061,0.145513,68722.0,68721.0,0.15050381]
[1730135334126,0.145513,68722.0,68716.0,0.0048014]
[1730135334127,0.145532,68713.0,68711.0,0.0048014]
[1730135334348,0.145532,68713.0,68712.0,0.36814588]
[1730135335072,0.145543,68708.0,68707.0,0.0048014]
[1730135335075,0.145532,68713.0,68707.0,0.0048014]
[1730135335300,0.291061,68714.0,68708.0,0.15050381]
[1730135335301,0.291069,68712.0,68708.0,0.15050381]
[1730135335501,0.145537,68711.0,68708.0,0.15050381]
[1730135335945,0.145533,68713.0,68708.0,0.29604581]
[1730135336198,0.291065,68713.0,68708.0,0.15050381]
[1730135336398,0.145537,68711.0,68708.0,0.15050381]
[1730135336610,0.436599,68713.0,68708.0,0.15050381]
[1730135336820,0.291065,68713.0,68708.0,0.15050381]
[1730135337031,0.145535,68712.0,68708.0,0.15050381]
[1730135337247,0.145534,68712.0,68708.0,0.16450381]
[1730135337507,0.145534,68712.0,68708.0,0.31004581]
[1730135337748,0.145534,68712.0,68708.0,0.29604581]
[1730135338190,0.145534,68712.0,68708.0,0.31004581]
[1730135338398,0.145532,68713.0,68708.0,0.30980386]
[1730135338865,0.0782,68717.0,68712.0,0.21764207]
[1730135339079,0.0766,68728.0,68717.0,0.0048014]
[1730135339291,0.21928407,68729.0,68712.0,0.24724156]
[1730135339292,0.51028207,68729.0,68721.0,0.291031]
[1730135339528,0.145501,68728.0,68722.0,0.15341365]
[1730135339736,0.147141,68729.0,68724.0,0.145509]
[1730135339971,0.001642,68729.0,68726.0,0.145504]
[1730135340201,0.001642,68729.0,68727.0,0.15050381]
[1730135340407,0.001642,68729.0,68721.0,0.29103]
[1730135340408,0.145506,68726.0,68722.0,0.0048014]
[1730135340619,0.145501,68728.0,68723.0,0.145511]
[1730135340797,0.145501,68728.0,68724.0,0.15050381]
[1730135341031,0.147142,68729.0,68724.0,0.29601281]
[1730135341235,0.0135044,68728.0,68726.0,0.014]
[1730135341485,0.145503,68727.0,68726.0,0.014]
[1730135341693,0.001642,68729.0,68718.0,0.0048014]
[1730135341901,0.29101,68726.0,68721.0,0.21764207]
[1730135342106,0.01350931,68725.0,68724.0,0.014]
[1730135342324,0.01350931,68725.0,68724.0,0.159509]
[1730135342534,0.001642,68729.0,68728.0,0.145501]
[1730135342777,0.001642,68729.0,68725.0,0.0048014]
[1730135342778,0.01515568,68729.0,68726.0,0.145504]
[1730135342996,0.001642,68729.0,68727.0,0.15050381]
[1730135343204,0.001642,68729.0,68728.0,0.145501]
[1730135343416,0.001642,68729.0,68727.0,0.15050381]
[1730135343626,0.001642,68729.0,68727.0,0.29600581]
[1730135343831,0.001642,68729.0,68727.0,0.15050381]
[1730135344506,0.001642,68729.0,68728.0,0.001]
[1730135344817,0.001642,68729.0,68727.0,0.15050381]
[1730135345227,0.001642,68729.0,68727.0,0.16450381]
[1730135345846,0.145501,68728.0,68727.0,0.16450381]
[1730135346041,0.145501,68728.0,68727.0,0.014]
[1730135346477,0.01353263,68728.0,68727.0,0.014]
[1730135346679,0.01153263,68728.0,68727.0,0.014]
[1730135346880,0.01153263,68728.0,68727.0,0.29600681]
[1730135347088,0.001642,68729.0,68727.0,0.29600681]
[1730135347089,0.001642,68729.0,68728.0,0.0048014]
[1730135347340,0.001642,68729.0,68728.0,0.30080621]
[1730135347657,0.001642,68729.0,68728.0,0.15050381]
[1730135347920,0.001642,68729.0,68727.0,0.014]
[1730135348118,0.001642,68729.0,68727.0,0.29600581]
[1730135348333,0.001642,68729.0,68728.0,0.47563751]
[1730135348492,0.001642,68729.0,68728.0,0.47272784]
[1730135348694,0.001642,68729.0,68728.0,0.30180621]
[1730135349690,0.001642,68729.0,68728.0,0.30080621]
[1730135350100,0.001642,68729.0,68728.0,0.15050381]
[1730135350728,0.001642,68729.0,68728.0,0.15132912]
[1730135351540,0.001642,68729.0,68728.0,0.29683012]
[1730135351983,0.001642,68729.0,68728.0,0.15613052]
[1730135352182,0.001642,68729.0,68728.0,0.30163152]
[1730135353171,0.001642,68729.0,68728.0,0.51927359]
[1730135353377,0.001642,68729.0,68728.0,0.30163152]
[1730135354829,0.001642,68729.0,68728.0,0.15613052]
[1730135355254,0.001642,68729.0,68728.0,0.30163152]
[1730135356145,0.001642,68729.0,68728.0,0.38394096]
[1730135356343,0.001642,68729.0,68728.0,0.42642633]
[1730135356549,0.0112435,68732.0,68728.0,0.42642633]
[1730135356550,0.0112435,68732.0,68731.0,0.1602954]
[1730135356749,0.0112435,68732.0,68731.0,0.6466167]
[1730135357017,0.0112435,68732.0,68731.0,0.75220467]
[1730135357224,0.00281088,68732.0,68731.0,0.85220467]
[1730135357440,0.00281088,68732.0,68731.0,0.9600078]
[1730135357658,0.00281088,68732.0,68731.0,1.00483981]
[1730135358367,0.00281088,68732.0,68731.0,0.96855039]
[1730135358810,0.00281088,68732.0,68731.0,0.96855004]
[1730135359818,0.00281088,68732.0,68731.0,0.98255004]
[1730135360455,0.00165,68742.0,68741.0,0.3676744]
[1730135360657,0.00165,68742.0,68741.0,0.96759822]
[1730135360856,0.00165,68742.0,68741.0,0.85908645]
[1730135361060,0.00165,68742.0,68741.0,0.95908645]
[1730135361487,0.00165,68748.0,68747.0,0.819275]
[1730135361689,0.00165,68748.0,68747.0,1.12999508]
[1730135361905,0.00165,68748.0,68747.0,0.96977881]
[1730135362120,0.00165,68748.0,68747.0,1.12994135]
[1730135363152,0.00165,68748.0,68747.0,1.12987276]
[1730135363486,0.00165,68748.0,68747.0,1.14387276]
[1730135363885,0.00165,68748.0,68747.0,1.12987276]
[1730135364353,0.00165,68748.0,68747.0,1.14387276]
[1730135364976,0.00165,68748.0,68747.0,0.98176319]
[1730135365413,0.00165,68748.0,68747.0,1.09008104]
[1730135365616,0.00165,68748.0,68747.0,1.08992555]
[1730135366277,0.00165,68748.0,68747.0,1.26084718]
[1730135366507,0.00165,68748.0,68747.0,1.08111349]
[1730135366631,0.001648,68758.0,68747.0,1.08111349]
[1730135366632,0.001648,68758.0,68753.0,0.16001974]
[1730135366856,0.001648,68758.0,68753.0,0.30075321]
[1730135367058,0.001648,68758.0,68753.0,0.15050381]
[1730135367059,0.290879,68757.0,68753.0,0.15050381]
[1730135367256,0.292527,68758.0,68753.0,0.15050381]
[1730135367461,0.292527,68758.0,68745.0,0.21764207]
[1730135367462,0.290896,68753.0,68746.0,0.0048014]
[1730135367665,0.145455,68750.0,68747.0,0.36814588]
[1730135367877,0.00022966,68749.0,68740.0,0.21764207]
[1730135368090,0.661708,68751.0,68740.0,0.21764207]
[1730135368091,0.0799,68751.0,68748.0,0.21764207]
[1730135368296,0.08012966,68751.0,68746.0,0.145462]
[1730135368496,0.08012966,68751.0,68747.0,0.14836791]
[1730135368698,0.08012966,68751.0,68747.0,0.16236891]
[1730135368896,0.001648,68754.0,68749.0,0.145456]
[1730135369105,0.001648,68754.0,68750.0,0.15050381]
[1730135369361,0.001648,68754.0,68750.0,0.29595681]
[1730135369511,0.292541,68754.0,68750.0,0.15050381]
[1730135369713,0.145452,68752.0,68750.0,0.15050381]
[1730135369922,0.145452,68752.0,68744.0,0.21764207]
[1730135369923,0.00022966,68748.0,68744.0,0.21764207]
[1730135370125,0.12017766,68754.0,68745.0,0.00290894]
[1730135370321,0.145452,68752.0,68746.0,0.145461]
[1730135370533,0.00022966,68750.0,68747.0,0.00290892]
[1730135370950,0.00022966,68750.0,68747.0,0.00278701]
[1730135371161,0.00022966,68750.0,68745.0,0.14837194]
[1730135371590,0.00022966,68750.0,68745.0,0.00290894]
[1730135371901,0.00022966,68750.0,68747.0,0.14546]
[1730135372069,0.00022966,68750.0,68747.0,0.0029089]
[1730135372284,0.55651866,68754.0,68747.0,0.1483689]
[1730135372499,0.00022966,68750.0,68747.0,0.0029089]
[1730135372973,0.410841,68754.0,68753.0,0.145448]
[1730135372974,0.001648,68754.0,68753.0,0.145448]
[1730135373224,0.001648,68754.0,68753.0,0.47167484]
[1730135373702,0.001648,68754.0,68753.0,0.47367484]
[1730135374173,0.001648,68754.0,68753.0,0.47167484]
[1730135374402,0.001648,68754.0,68753.0,0.48344518]
[1730135375707,0.001648,68754.0,68753.0,0.66836681]
[1730135376115,0.001648,68754.0,68753.0,0.65436681]
[1730135376324,0.001648,68754.0,68753.0,0.66836681]
[1730135376522,0.001648,68754.0,68753.0,0.58256307]
[1730135376728,0.001648,68758.0,68757.0,0.1522404]
[1730135376937,0.001648,68758.0,68757.0,0.30074421]
[1730135377145,0.001648,68758.0,68757.0,0.30274421]
[1730135377969,0.001648,68758.0,68757.0,0.63015662]
[1730135378179,0.001648,68758.0,68757.0,0.41251455]
[1730135378558,0.001648,68758.0,68757.0,0.42651455]
[1730135379642,0.001648,68758.0,68757.0,0.41474421]
[1730135379832,0.001648,68758.0,68757.0,0.42451455]
[1730135380311,0.001648,68758.0,68757.0,0.42651455]
[1730135381142,0.001648,68758.0,68757.0,0.41474421]
[1730135381343,0.001648,68758.0,68757.0,0.42451455]
[1730135382182,0.001648,68758.0,68757.0,0.31474421]
[1730135382587,0.001648,68758.0,68757.0,0.57078373]
[1730135383007,0.001648,68758.0,68757.0,0.55678373]
[1730135383213,0.001648,68758.0,68757.0,0.55878373]
[1730135383421,0.001648,68758.0,68757.0,0.57078373]
[1730135383835,0.001648,68758.0,68757.0,0.57278373]
[1730135384283,0.001648,68758.0,68757.0,0.88075407]
[1730135384496,0.001648,68758.0,68757.0,1.19207466]
[1730135384704,0.001648,68758.0,68757.0,1.09153933]
[1730135384913,0.001648,68777.0,68776.0,0.145399]
[1730135385127,0.001648,68777.0,68776.0,0.29881039]
[1730135386034,0.001648,68777.0,68776.0,0.30361179]
[1730135386246,0.001648,68777.0,68776.0,0.30561179]
[1730135387401,0.001648,68782.0,68781.0,0.26195974]
[1730135387607,0.001648,68782.0,68781.0,0.66850307]
[1730135388660,0.001648,68782.0,68781.0,0.68250307]
[1730135389103,0.001648,68782.0,68781.0,0.90707634]
[1730135389307,0.001648,68798.0,68797.0,0.145355]
[1730135389523,0.001648,68798.0,68797.0,0.29585881]
[1730135390165,0.001648,68798.0,68797.0,0.29876541]
[1730135390788,0.001648,68798.0,68797.0,0.29585881]
[1730135391212,0.001648,68798.0,68797.0,0.15050381]
[1730135392123,0.001648,68798.0,68797.0,0.32385881]
[1730135392545,0.001648,68798.0,68797.0,0.30985881]
[1730135392951,0.001648,68798.0,68797.0,0.32385881]
[1730135393612,0.001648,68798.0,68797.0,0.30985881]
[1730135393840,0.001648,68798.0,68797.0,0.32385881]
[1730135394075,0.001648,68798.0,68797.0,0.17850381]
[1730135394318,0.001648,68798.0,68797.0,0.16450381]
[1730135394524,0.001648,68798.0,68797.0,0.17850381]
[1730135394800,0.001648,68798.0,68797.0,0.16450381]
[1730135395011,0.001648,68798.0,68797.0,0.32385881]
[1730135395223,0.001648,68798.0,68797.0,0.30985881]
[1730135395635,0.001648,68798.0,68797.0,0.32385881]
[1730135396680,0.001648,68798.0,68797.0,0.16450381]
[1730135397109,0.001648,68798.0,68797.0,0.32385881]
[1730135398090,0.001648,68798.0,68797.0,0.17850381]
[1730135398291,0.001648,68798.0,68797.0,0.32385881]
[1730135398718,0.001648,68798.0,68797.0,0.17850381]
[1730135398912,0.001648,68798.0,68797.0,0.32385881]
[1730135399320,0.001648,68798.0,68797.0,0.17850381]
[1730135399746,0.001648,68798.0,68797.0,0.32385881]
[1730135400403,0.001648,68798.0,68797.0,0.17850381]
[1730135400578,0.001648,68798.0,68797.0,0.32385881]
[1730135401397,0.001648,68798.0,68797.0,0.49440916]
[1730135401800,0.001648,68798.0,68797.0,0.17850381]
[1730135401976,0.001648,68798.0,68797.0,0.32385881]
[1730135404389,0.001648,68798.0,68797.0,0.49440916]
[1730135405631,0.001648,68798.0,68797.0,0.49921056]
[1730135405830,0.001648,68798.0,68797.0,0.32866021]
[1730135406340,0.001648,68798.0,68797.0,0.33066021]
[1730135406565,0.001648,68798.0,68797.0,0.41126021]
[1730135406777,0.001648,68798.0,68797.0,0.38490021]
[1730135407199,0.001648,68798.0,68797.0,0.41090021]
[1730135409697,0.001648,68798.0,68797.0,0.33030021]
[1730135411323,0.001648,68798.0,68797.0,0.32549881]
[1730135411555,0.001648,68798.0,68797.0,0.18014381]
[1730135411794,0.01519071,68798.0,68797.0,0.32549881]
[1730135412451,0.001648,68798.0,68797.0,0.50085056]
[1730135413048,0.001648,68798.0,68797.0,0.50285056]
[1730135413292,0.001648,68798.0,68797.0,0.41080021]
[1730135413973,0.001648,68798.0,68797.0,0.33230021]
[1730135414216,0.001648,68798.0,68797.0,0.33030021]
[1730135415486,0.001648,68798.0,68797.0,0.33230021]
[1730135415663,0.001648,68798.0,68797.0,0.33030021]
[1730135416361,0.001648,68798.0,68797.0,0.32549881]
[1730135416631,0.01523926,68798.0,68797.0,0.32549881]
[1730135417414,0.01524449,68798.0,68797.0,0.41320021]
[1730135417642,0.001648,68798.0,68797.0,0.41139604]
[1730135418112,0.001648,68798.0,68797.0,0.32369464]
[1730135418341,0.01524457,68798.0,68797.0,0.32369464]
[1730135419464,0.01524488,68798.0,68797.0,0.32369464]
[1730135419670,0.01524488,68798.0,68797.0,0.32849604]
[1730135419897,0.001648,68798.0,68797.0,0.32849604]
[1730135420316,0.001648,68798.0,68797.0,0.33049604]
[1730135420569,0.001648,68798.0,68797.0,0.40619604]
[1730135421634,0.21764207,68816.0,68797.0,0.40619604]
[1730135421635,0.02174166,68815.0,68814.0,0.0048014]
[1730135421859,0.000824,68817.0,68816.0,0.1501164]
[1730135422087,0.000824,68817.0,68816.0,0.30352582]
[1730135422600,0.000824,68817.0,68816.0,0.30062021]
[1730135423133,0.000824,68817.0,68816.0,0.29581881]
[1730135423336,0.000824,68817.0,68816.0,0.30981881]
[1730135423588,0.000824,68817.0,68816.0,0.29581881]
[1730135423819,0.000824,68817.0,68816.0,0.32381881]
[1730135424047,0.000824,68817.0,68816.0,0.17850381]
[1730135424505,0.01437459,68817.0,68816.0,0.17850381]
[1730135424952,0.000824,68817.0,68816.0,0.16450381]
[1730135425449,0.01437317,68817.0,68816.0,0.17850381]
[1730135425738,0.01437317,68817.0,68816.0,0.15050381]
[1730135425975,0.15968517,68817.0,68816.0,0.17850381]
[1730135426202,0.01437317,68817.0,68816.0,0.17850381]
[1730135426443,0.000824,68817.0,68816.0,0.16450381]
[1730135426890,0.01437322,68817.0,68816.0,0.17850381]
[1730135428852,0.15968522,68817.0,68816.0,0.17850381]
[1730135429063,0.01437322,68817.0,68816.0,0.17850381]
[1730135430515,0.01438441,68817.0,68816.0,0.17850381]
[1730135430757,0.15969641,68817.0,68816.0,0.17850381]
[1730135430921,0.0143844,68817.0,68816.0,0.17850381]
[1730135432890,0.1596964,68817.0,68816.0,0.17850381]
[1730135433317,0.16012466,68817.0,68816.0,0.028]
[1730135433521,0.45685706,68817.0,68816.0,0.028]
[1730135433726,0.54380306,68817.0,68816.0,0.028]
[1730135434137,0.561183,68817.0,68816.0,0.028]
[1730135434359,0.56118146,68817.0,68816.0,0.028]
[1730135434804,0.56118146,68817.0,68816.0,0.014]
[1730135435012,0.56118146,68817.0,68804.0,0.21764207]
[1730135435013,0.22726626,68805.0,68804.0,0.21764207]
[1730135435235,0.27612057,68805.0,68804.0,0.21764207]
[1730135435453,0.26253969,68805.0,68804.0,0.21764207]
[1730135435664,0.00022966,68799.0,68797.0,0.21928207]
[1730135435910,0.0135604,68798.0,68797.0,0.36978588]
[1730135436321,0.0135604,68798.0,68797.0,0.29749881]
[1730135436523,0.00022966,68799.0,68797.0,0.29749881]
[1730135436524,0.14558066,68799.0,68797.0,0.15214381]
[1730135436736,0.00022966,68799.0,68797.0,0.15214381]
[1730135437789,0.00022966,68799.0,68797.0,0.00164]
[1730135437790,0.14558266,68798.0,68797.0,0.00164]
[1730135437994,0.00022966,68798.0,68797.0,0.01564]
[1730135438488,0.00022966,68798.0,68797.0,0.32549881]
[1730135438694,0.00022966,68798.0,68797.0,0.29749881]
[1730135438900,0.00022966,68798.0,68797.0,0.31440557]
[1730135439102,0.00022966,68798.0,68797.0,0.18014381]
[1730135439536,0.00022966,68798.0,68797.0,0.32840557]
[1730135439757,0.00022966,68798.0,68797.0,0.32549881]
[1730135440494,0.00105266,68798.0,68797.0,0.18014381]
[1730135440694,0.00105266,68798.0,68797.0,0.32549881]
[1730135443114,0.000823,68798.0,68797.0,0.32549881]
[1730135443318,0.000823,68798.0,68797.0,0.6074377]
[1730135443536,0.000823,68798.0,68797.0,0.69242901]
[1730135443721,0.000823,68798.0,68797.0,0.71417683]
[1730135444330,0.000823,68798.0,68797.0,0.6054377]
[1730135444544,0.000823,68798.0,68797.0,0.57301879]
[1730135444907,0.000823,68798.0,68797.0,0.32549881]
[1730135445115,0.000823,68798.0,68797.0,0.53954343]
[1730135445319,0.000823,68798.0,68797.0,0.74838537]
[1730135445521,0.000823,68798.0,68797.0,0.74838856]
[1730135445723,0.000823,68798.0,68797.0,0.64740288]
[1730135445938,0.000823,68798.0,68797.0,0.73438856]
[1730135446181,0.000823,68798.0,68797.0,0.74838856]
[1730135446302,0.000823,68798.0,68797.0,0.73438856]
[1730135447348,0.000823,68798.0,68797.0,0.72038856]
[1730135447759,0.000823,68798.0,68797.0,0.66140288]
[1730135448166,0.000823,68798.0,68797.0,0.83674261]
[1730135448368,0.000823,68798.0,68797.0,0.74200288]
[1730135448575,0.000823,68798.0,68797.0,0.74000288]
[1730135448791,0.000823,68798.0,68797.0,0.84875022]
[1730135449001,0.000823,68798.0,68797.0,0.82275022]
[1730135449216,0.000823,68798.0,68797.0,0.83475127]
[1730135449429,0.000823,68798.0,68797.0,0.74001571]
[1730135449648,0.000823,68798.0,68797.0,0.83476642]
[1730135449871,0.000823,68798.0,68797.0,0.72601571]
[1730135450281,0.000823,68798.0,68797.0,0.83476725]
[1730135450695,0.000823,68798.0,68797.0,0.799022]
[1730135451139,0.000823,68798.0,68797.0,0.83476725]
[1730135451429,0.000823,68798.0,68797.0,0.45806396]
[1730135451631,0.000823,68798.0,68797.0,0.47206396]
[1730135451837,0.000823,68798.0,68797.0,0.48606396]
[1730135452037,0.000823,68798.0,68797.0,0.47206396]
[1730135452252,0.000823,68798.0,68797.0,0.48606396]
[1730135452460,0.000823,68798.0,68797.0,0.64461431]
[1730135452691,0.000823,68798.0,68797.0,0.64261431]
[1730135452904,0.000823,68798.0,68797.0,0.65661431]
[1730135453539,0.000823,68798.0,68797.0,0.66341571]
[1730135453777,0.000823,68798.0,68797.0,0.64941571]
[1730135453984,0.000823,68798.0,68797.0,0.66341571]
[1730135454423,0.000823,68798.0,68797.0,0.64941571]
[1730135454629,0.000823,68798.0,68797.0,0.74417247]
[1730135454852,0.000823,68798.0,68797.0,0.75817247]
[1730135455111,0.000823,68798.0,68797.0,0.77217247]
[1730135455330,0.000823,68798.0,68797.0,0.64941571]
[1730135455536,0.000823,68798.0,68797.0,0.77017244]
[1730135456207,0.000823,68798.0,68797.0,0.66141571]
[1730135456666,0.000823,68798.0,68797.0,0.66341571]
[1730135457085,0.000823,68798.0,68797.0,0.49286536]
[1730135457730,0.000823,68798.0,68797.0,0.78296536]
[1730135457945,0.000824,68819.0,68816.0,0.145315]
[1730135458164,0.000824,68819.0,68816.0,0.29872459]
[1730135458370,0.000824,68819.0,68816.0,0.29581881]
[1730135458590,0.000824,68819.0,68816.0,0.5433617]
[1730135459221,0.000824,68819.0,68816.0,0.47036347]
[1730135459654,0.000824,68819.0,68816.0,0.35330876]
[1730135459869,0.000824,68819.0,68816.0,0.30981881]
[1730135460045,0.000824,68819.0,68816.0,0.32381881]
[1730135460284,0.000824,68819.0,68816.0,0.35330876]
[1730135460703,0.000824,68819.0,68816.0,0.48036916]
[1730135461325,0.000824,68819.0,68816.0,0.49436916]
[1730135461537,0.000824,68819.0,68816.0,0.46636916]
[1730135461753,0.000824,68819.0,68816.0,0.64568503]
[1730135461972,0.000824,68819.0,68816.0,0.74268503]
[1730135462238,0.000824,68819.0,68816.0,0.72668503]
[1730135462710,0.000824,68819.0,68816.0,0.83534316]
[1730135463136,0.000824,68819.0,68816.0,0.82134316]
[1730135463549,0.000824,68819.0,68816.0,0.71268503]
[1730135463763,0.000824,68819.0,68816.0,0.82332222]
[1730135463996,0.000824,68819.0,68816.0,0.84932222]
[1730135464212,0.000824,68819.0,68816.0,0.85132222]
[1730135464422,0.000824,68819.0,68816.0,0.82332222]
[1730135464634,0.000824,68819.0,68816.0,0.83732222]
[1730135464841,0.000824,68819.0,68816.0,0.84917342]
[1730135465059,0.000824,68819.0,68816.0,0.74055397]
[1730135465268,0.000824,68819.0,68816.0,0.65955397]
[1730135465477,0.000824,68819.0,68816.0,0.64075257]
[1730135465686,0.000824,68819.0,68816.0,0.52381937]
[1730135465899,0.000824,68819.0,68816.0,0.49436916]
[1730135466108,0.000824,68819.0,68816.0,0.48036916]
[1730135466629,0.000824,68819.0,68816.0,0.49436916]
[1730135466846,0.000824,68819.0,68816.0,0.53061528]
[1730135467078,0.000824,68819.0,68816.0,0.88899263]
[1730135467285,0.000824,68823.0,68822.0,0.31585235]
[1730135467495,0.21764207,68833.0,68831.0,0.145282]
[1730135467496,0.21763578,68833.0,68831.0,0.145282]
[1730135467701,0.0001986,68834.0,68832.0,0.29578381]
[1730135468140,0.0001986,68834.0,68832.0,0.15050381]
[1730135470004,0.1454756,68834.0,68832.0,0.15050381]
[1730135470231,0.1454756,68834.0,68832.0,0.16450381]
[1730135470924,0.1454756,68834.0,68832.0,0.17850381]
[1730135471126,0.1454756,68834.0,68832.0,0.16450381]
[1730135471357,0.1454756,68834.0,68832.0,0.17850381]
[1730135471793,0.0001986,68834.0,68832.0,0.17850381]
[1730135472005,0.145279,68833.0,68832.0,0.17850381]
[1730135472648,0.0001986,68834.0,68832.0,0.17850381]
[1730135472866,0.0001986,68834.0,68832.0,0.16450381]
[1730135473531,0.0001986,68834.0,68832.0,0.17850381]
[1730135473743,0.145279,68833.0,68832.0,0.16450381]
[1730135474004,0.145279,68833.0,68832.0,0.15050381]
[1730135474255,0.145279,68833.0,68832.0,0.16450381]
[1730135474530,0.1454776,68833.0,68832.0,0.014]
[1730135474759,0.24392918,68833.0,68832.0,0.028]
[1730135474998,0.24392918,68833.0,68832.0,0.154]
[1730135475259,0.26561063,68833.0,68832.0,0.168]
[1730135475474,0.26561063,68833.0,68832.0,0.14]
[1730135475731,0.24392918,68833.0,68832.0,0.14]
[1730135475961,0.2253776,68833.0,68832.0,0.154]
[1730135476192,0.2303776,68833.0,68832.0,0.154]
[1730135476433,0.2303776,68833.0,68832.0,0.14]
[1730135476848,0.0850986,68833.0,68832.0,0.14]
[1730135477097,0.2253776,68833.0,68832.0,0.154]
[1730135477307,0.2303776,68833.0,68832.0,0.14]
[1730135477516,0.2303776,68833.0,68832.0,0.168]
[1730135477517,0.2439324,68833.0,68832.0,0.168]
[1730135477723,0.41448275,68833.0,68832.0,0.168]
[1730135478134,0.40092795,68833.0,68832.0,0.168]
[1730135478546,0.2253776,68833.0,68832.0,0.168]
[1730135478753,0.2303776,68833.0,68832.0,0.168]
[1730135480858,0.1454776,68833.0,68832.0,0.168]
[1730135481327,0.0001986,68833.0,68832.0,0.168]
[1730135481582,0.1454776,68833.0,68832.0,0.168]
[1730135481827,0.0001986,68833.0,68832.0,0.168]
[1730135482252,0.1454776,68833.0,68832.0,0.168]
[1730135482673,0.0001986,68833.0,68832.0,0.168]
[1730135482891,0.000823,68834.0,68832.0,0.31850381]
[1730135483147,0.000823,68834.0,68833.0,0.29868806]
[1730135483376,0.000823,68834.0,68833.0,0.43868806]
[1730135483585,0.000823,68834.0,68833.0,0.43578281]
[1730135484233,0.1462986,68834.0,68833.0,0.14]
[1730135484453,0.35416818,68834.0,68833.0,0.14]
[1730135484658,0.38945863,68834.0,68833.0,0.14]
[1730135484871,0.38945863,68834.0,68833.0,0.154]
[1730135485552,0.38946451,68834.0,68833.0,0.168]
[1730135486006,0.43114579,68834.0,68833.0,0.168]
[1730135486426,0.58114853,68834.0,68833.0,0.168]
[1730135486639,0.55852652,68834.0,68833.0,0.168]
[1730135487085,0.55852652,68834.0,68833.0,0.154]
[1730135487501,0.55852652,68834.0,68833.0,0.14]
[1730135487707,0.55952652,68834.0,68833.0,0.14]
[1730135487911,0.55852652,68834.0,68833.0,0.14]
[1730135488357,0.56052652,68834.0,68833.0,0.14]
[1730135488600,0.56252652,68834.0,68833.0,0.14]
[1730135489040,0.56052652,68834.0,68833.0,0.14]
[1730135489505,0.78731991,68834.0,68833.0,0.14]
[1730135489794,0.7150905,68834.0,68833.0,0.14]
[1730135489998,0.7150905,68834.0,68833.0,0.10726537]
[1730135490214,0.7150905,68834.0,68833.0,0.09963221]
[1730135490619,0.7130905,68834.0,68833.0,0.09963221]
[1730135492569,0.69135143,68834.0,68833.0,0.09963221]
[1730135492780,0.71300723,68834.0,68833.0,0.09963221]
[1730135492996,0.71500723,68834.0,68833.0,0.0583726]
[1730135493202,0.0051986,68819.0,68818.0,0.21764207]
[1730135493414,0.36991168,68819.0,68818.0,0.33764207]
[1730135493858,0.36991168,68819.0,68818.0,0.12]
[1730135494362,0.36991168,68819.0,68818.0,0.134]
[1730135494789,0.36991168,68819.0,68818.0,0.148]
[1730135497519,0.36989661,68819.0,68818.0,0.148]
[1730135498669,0.38074014,68819.0,68818.0,0.149646]
[1730135500137,0.36989661,68819.0,68818.0,0.149646]
[1730135500349,0.35634092,68819.0,68818.0,0.149646]
[1730135501817,0.3698969,68819.0,68818.0,0.149646]
[1730135502201,0.38074139,68819.0,68818.0,0.149646]
[1730135502402,0.21019104,68819.0,68818.0,0.149646]
[1730135504499,0.25098042,68819.0,68818.0,0.149646]
[1730135504711,0.35098042,68819.0,68818.0,0.149646]
[1730135504929,0.34098091,68819.0,68818.0,0.149646]
[1730135505136,0.29934655,68819.0,68818.0,0.149646]
[1730135505967,0.31928759,68819.0,68818.0,0.149646]
[1730135506499,0.34098771,68819.0,68818.0,0.149646]
[1730135506698,0.31928759,68819.0,68818.0,0.149646]
[1730135507497,0.29934655,68819.0,68818.0,0.149646]
[1730135507699,0.31019865,68819.0,68818.0,0.149646]
[1730135507880,0.29934655,68819.0,68818.0,0.149646]
[1730135508704,0.31929292,68819.0,68818.0,0.149646]
[1730135508945,0.32929292,68819.0,68818.0,0.149646]
[1730135510444,0.35099981,68819.0,68818.0,0.149646]
[1730135510597,0.50150362,68819.0,68818.0,0.149646]
[1730135510802,0.83640698,68819.0,68818.0,0.149646]
[1730135511060,0.85377607,68819.0,68818.0,0.149646]
[1730135511447,0.70327226,68819.0,68818.0,0.149646]
[1730135511649,0.68156861,68819.0,68818.0,0.135646]
[1730135511812,0.66420553,68819.0,68818.0,0.135646]
[1730135512003,0.66820553,68819.0,68818.0,0.135646]
[1730135512428,0.32330172,68819.0,68818.0,0.135646]
[1730135512709,0.30333898,68819.0,68818.0,0.121646]
[1730135512923,0.26807106,68819.0,68818.0,0.121646]
[1730135513127,0.29277556,68819.0,68818.0,0.122646]
[1730135513328,0.28877556,68819.0,68818.0,0.122646]
[1730135513543,0.28877556,68819.0,68818.0,0.121646]
[1730135513544,0.28977556,68819.0,68818.0,0.121646]
[1730135513947,0.29077556,68819.0,68818.0,0.121646]
[1730135514361,0.30435344,68819.0,68818.0,0.121646]
[1730135514780,0.30035344,68819.0,68818.0,0.121646]
[1730135515819,0.31021991,68819.0,68818.0,0.123646]
[1730135515968,0.31021991,68819.0,68818.0,0.137646]